Cogmind - Beta 12 X4 @@@ ROGUE MODE // 2022.12.12 @ 16:39:30 Player: Jezoensis Result: Destroyed by Y-45 Defender with Beam Rifle Performance ------------- Evolutions (0) 0 Regions Visited (4) 800 Robots Destroyed (27) 135 Value Destroyed (437) 437 Prototype IDs (25) 500 Alien Tech Used (0) 0 Bonus (385) 385 TOTAL SCORE: 2257 Bonus ------- Follower Combat Kills 85 Aligned with FarCom 300 Cogmind --------- Core Integrity 0/250 Matter 235/300 Energy 160/160 System Corruption 0% Temperature Warning (355) Movement Treading (160) Location -9/Mines Parts ------- > --- POWER (1) -------- Light Nuclear Core > --- PROPULSION (2) --- Light Treads Light Treads > --- UTILITY (2) ------ Large Storage Unit Medium Insulated Plating > --- WEAPON (2) ------- Powered Hammer > --- INVENTORY (15) --- Wheel Compact Wheel High-capacity Storage Unit High-capacity Matter Pod (200) High-capacity Matter Pod (200) Improved Terrain Scanner Seismic Detector 0b10 Alert Chip Grenade Launcher Heavy Rocket Launcher Peak State ------------ > --- POWER ------------ Light Angular Momentum Engine > --- PROPULSION ------- Light Treads Light Treads > --- UTILITY ---------- Large Storage Unit Medium Insulated Plating > --- WEAPON ----------- Medium Laser Powered Hammer > --- INVENTORY -------- Light Nuclear Core Wheel Compact Wheel High-capacity Storage Unit High-capacity Matter Pod High-capacity Matter Pod Improved Terrain Scanner Seismic Detector 0b10 Alert Chip Grenade Launcher Heavy Rocket Launcher [Rating: 19] Favorites ----------- Power Light Angular Momentum Engine Engine Light Angular Momentum Engine Power Core Micro Nuclear Core Propulsion Wheel Treads Light Treads Wheel Wheel Utility Seismic Detector Device Seismic Detector Storage Small Storage Unit Protection Medium Insulated Plating Weapon Medium Laser Energy Gun Medium Laser Ballistic Gun Assault Rifle Launcher Grenade Launcher Special Weapon Mining Laser Impact Weapon Powered Hammer Build | -11 -10 -10 -10 -9 ------- Run | Scr Mat Min Exi Min Slots Evolved . | . . . . . Power . | . . . . . Propulsion . | . . . . . Utility . | . . . . . Weapon . | . . . . . Parts Attached 38 | 9 5 8 3 13 Power 6 | 2 . 1 . 3 Engine 4 | 2 . 1 . 1 Core 2 | . . . . 2 Reactor . | . . . . . Propulsion 11 | 3 2 1 . 5 Treads 3 | . . . . 3 Leg . | . . . . . Wheel 8 | 3 2 1 . 2 Hover . | . . . . . Flight . | . . . . . Utility 7 | 2 . . 3 2 Device 1 | 1 . . . . Storage 5 | 1 . . 3 1 Processor . | . . . . . Hackware . | . . . . . Protection 1 | . . . . 1 Artifact . | . . . . . Weapon 14 | 2 3 6 . 3 Energy Gun 7 | 2 1 3 . 1 Energy Cannon . | . . . . . Ballistic Gun 1 | . 1 . . . Ballistic Cannon . | . . . . . Launcher 4 | . . 3 . 1 Special Weapon 1 | . 1 . . . Impact Weapon 1 | . . . . 1 Slashing Weapon . | . . . . . Piercing Weapon . | . . . . . Special Melee Weapon . | . . . . . Unidentified Prototypes . | . . . . . Parts Lost 5 | . . 1 . 4 Power 2 | . . . . 2 Propulsion . | . . . . . Utility . | . . . . . Weapon 3 | . . 1 . 2 Highest Loss Streak 3 | . . 1 . 3 To Critical Strikes . | . . . . . Average Slot Usage (%) 99 | . 99 100 100 99 Engine 12 | . 14 14 14 9 Core 1 | . . . . 4 Wheel 26 | . 27 28 28 24 Device 13 | . 14 14 14 11 Storage 14 | . 14 14 14 14 Energy Gun 16 | . 26 13 14 13 Ballistic Gun 11 | . 1 14 14 13 Naked Turns . | . . . . . Heaviest Build 40 | 14 15 19 24 40 Greatest Support 40 | 20 20 26 26 40 Greatest Overweight (x) 2 | 1 1 . . 2 Average Overweight (x) . | . . . . . Largest Inventory Capacity 15 | 8 8 8 15 15 Average Capacity 9 | 6 8 8 9 14 Most Carried 13 | 6 8 8 10 13 Average Carried 8 | 4 7 7 9 11 Final Capacity 15 | 8 8 8 10 15 Final Carried 10 | 6 8 8 10 10 Class Distribution -------------------- 100% | Mutant Dominant Class ---------------- Mutant | -10/Materials Mutant | -10/Mines Mutant | -10/Exiles Mutant | -9/Mines Resources | -11 -10 -10 -10 -9 ----------- Run | Scr Mat Min Exi Min Matter Collected 853 | 233 16 304 190 110 Remotely . | . . . . . Salvage Created 532 | 103 96 140 . 193 Parts 43 | 10 4 15 . 14 Haulers Intercepted 1 | . 1 . . . Recyclers Shooed 1 | 1 . . . . Parts Field Recycled . | . . . . . Retrieved Matter . | . . . . . Parts Self-Destructed . | . . . . . Prevented . | . . . . . Kills | -11 -10 -10 -10 -9 ------- Run | Scr Mat Min Exi Min Combat Hostiles Destroyed 16 | . 3 7 . 6 Guns 7 | . 3 1 . 3 AOE 9 | . . 6 . 3 Classes Destroyed 7 | 1 2 3 . 1 Worker 1 | . . 1 . . Tunneler 8 | 5 . 1 . 2 Hauler 1 | . 1 . . . Mechanic 1 | . . 1 . . Swarmer 9 | . 3 3 . 3 Grunt 6 | . . 4 . 2 Sentry 1 | . . . . 1 Best Kill Streak 6 | 5 3 6 . 4 Combat Bots Only 5 | . 3 5 . 3 Max Kills in Single Turn 3 | 1 1 3 . 2 Gunslinging 1 | . . . . 1 Exploded 3 | . . 3 . 2 Melee . | . . . . . Uniques/NPCs Destroyed . | . . . . . Combat | -11 -10 -10 -10 -9 -------- Run | Scr Mat Min Exi Min Damage Taken 957 | . 17 369 . 571 Core 262 | . 8 143 . 111 Absorbed by Shields . | . . . . . Core Remaining (%) 100 | 100 . . . . Volleys Fired 54 | 10 11 14 . 19 Largest 2 | 2 2 2 . 2 Hottest 100 | 90 100 70 . 70 Shots Fired 95 | 20 21 20 . 34 Gun 84 | 20 20 12 . 32 Cannon . | . . . . . Launcher 10 | . . 8 . 2 Special 1 | . 1 . . . Kinetic 21 | . . 6 . 15 Thermal 59 | 20 21 1 . 17 Explosive 10 | . . 8 . 2 Electromagnetic 5 | . . 5 . . Robot Hit Streak 12 | 8 12 8 . 9 Robot Miss Streak 3 | 1 3 3 . 3 Penetration Max . | . . . . . Secondary Targets 1 | . . . . 1 Max Gunslinging Chain 1 | . . . . 1 Shots Hit Robots 63 | 14 15 13 . 21 Core Hits 38 | 5 4 19 . 10 Critical Kills . | . . . . . Critical Parts Destroyed . | . . . . . Critical Strikes 2 | . 1 . . 1 Burn 2 | . 1 . . 1 Melee Attacks 1 | . . . . 1 Impact 1 | . . . . 1 Slashing . | . . . . . Piercing . | . . . . . Sneak Attacks . | . . . . . Combat Hostiles . | . . . . . Follow-up Attacks . | . . . . . Damage Inflicted 1518 | 174 193 683 . 468 Guns 698 | 174 193 88 . 243 Cannons . | . . . . . Explosions 796 | . . 595 . 201 Melee 24 | . . . . 24 Ramming . | . . . . . Kinetic 204 | . . 63 . 141 Thermal 469 | 174 193 . . 102 Explosive 796 | . . 595 . 201 Electromagnetic 25 | . . 25 . . Impact 24 | . . . . 24 Slashing . | . . . . . Piercing . | . . . . . Highest Corruption . | . . . . . Average Corruption . | . . . . . Corruption Purged . | . . . . . Corruption Blocked . | . . . . . Overload Shots . | . . . . . Overflow Damage 60 | . . 2 . 58 Projectiles . | . . . . . Explosions 60 | . . 2 . 58 Melee . | . . . . . Knockbacks . | . . . . . Impact . | . . . . . Kinetic . | . . . . . Secondary . | . . . . . Self-Inflicted Damage 242 | . . 165 . 77 Shots 7 | . . 5 . 2 Rammed . | . . . . . Targets Rammed . | . . . . . Kicked . | . . . . . Crushed . | . . . . . Highest Temperature 387 | 130 155 24 . 387 Average Temperature 94 | 71 67 8 . 159 Received Heat Transfer 243 | . . 108 . 135 Siege Activations . | . . . . . Robots Corrupted . | . . . . . Combat Hostiles . | . . . . . Parts Fried . | . . . . . Impact Corruptions . | . . . . . Robots Melted 1 | . 1 . . . Combat Hostiles . | . . . . . Parts Melted 1 | . 1 . . . Heat Transferred 1386 | 471 545 . . 370 Parts Sabotaged . | . . . . . Parts Stolen . | . . . . . Parts Stripped . | . . . . . Power Chain Reactions . | . . . . . Missiles Intercepted . | . . . . . Alert | -11 -10 -10 -10 -9 ------- Run | Scr Mat Min Exi Min Peak Influence 383 | 25 152 383 . 206 Initial 16 | . 16 . . . Average 128 | 8 84 184 . 144 Maximum Alert Level 1 | . . 1 . 1 Low Security (%) 79 | 100 100 37 . 95 Level 1 20 | . . 62 . 4 Level 2 . | . . . . . Level 3 . | . . . . . Level 4 . | . . . . . Level 5 . | . . . . . High Security . | . . . . . Max Security . | . . . . . Squads Dispatched 1 | . . 1 . . Investigation . | . . . . . Extermination . | . . . . . Reinforcement . | . . . . . Assault 1 | . . 1 . . Garrison . | . . . . . Intercept . | . . . . . Searches Triggered . | . . . . . Construction Impeded . | . . . . . Haulers Reinforced . | . . . . . Active Scanning Responses . | . . . . . Cargo Convoy Interrupts . | . . . . . Stealth | -11 -10 -10 -10 -9 --------- Run | Scr Mat Min Exi Min Distress Signals 1 | . 1 . . . Communications Jammed . | . . . . . Distress Signals . | . . . . . Times Spotted 26 | . 7 12 . 7 Peak Tracking Total 4 | . 3 4 . 3 Tactical Retreats 1 | . 1 . . . Traps | -11 -10 -10 -10 -9 ------- Run | Scr Mat Min Exi Min Traps Triggered 1 | . 1 . . . Indirectly . | . . . . . Trap Hack Attempts . | . . . . . Triggered . | . . . . . Disarmed . | . . . . . Reprogrammed . | . . . . . Reused . | . . . . . Traps Extracted . | . . . . . Installed . | . . . . . Triggered . | . . . . . Machines | -11 -10 -10 -10 -9 ---------- Run | Scr Mat Min Exi Min Machines Disabled . | . . . . . Max in Single Turn . | . . . . . Machines Sabotaged . | . . . . . Overloaded Fab Kills . | . . . . . Hacking | -11 -10 -10 -10 -9 --------- Run | Scr Mat Min Exi Min Machines Accessed 8 | . 6 . 1 1 Terminals 6 | . 6 . . . Fabricators . | . . . . . Repair Stations . | . . . . . Recycling Units . | . . . . . Scanalyzers . | . . . . . Garrison Access . | . . . . . Total Hacks 23 | . 21 . 1 1 Successful 14 | . 12 . 1 1 Failed 8 | . 8 . . . Catastrophic . | . . . . . Database Lockouts 1 | . 1 . . . Manual 21 | . 20 . 1 . Terminals 21 | . 21 . . . Fabricators . | . . . . . Repair Stations . | . . . . . Recycling Units . | . . . . . Scanalyzers . | . . . . . Garrison Access . | . . . . . Terminal Hacks 11 | . 9 . 1 1 Robot Analysis 4 | . 4 . . . Prototype ID Bank 1 | . 1 . . . Open Door 1 | . . . . 1 Branch Access Points 1 | . 1 . . . Terminal Index 1 | . 1 . . . Unreport Threat 1 | . 1 . . . Locate Traps 1 | . 1 . . . EX-Prototype ID Bank 1 | . . . 1 . Fabricator Hacks . | . . . . . Repair Station Hacks . | . . . . . Recycling Unit Hacks . | . . . . . Scanalyzer . | . . . . . Garrison Access Hacks . | . . . . . Unauthorized Hacks 3 | . 3 . . . Terminals 3 | . 3 . . . Botnet 2 | . 2 . . . Operators 1 | . 1 . . . Fabricators . | . . . . . Repair Stations . | . . . . . Recycling Units . | . . . . . Scanalyzers . | . . . . . Garrison Access . | . . . . . Data Cores Recovered . | . . . . . Used . | . . . . . Hacking Detections 6 | . 6 . . . Full Trace Events 1 | . 1 . . . Feedback Events . | . . . . . Feedback Blocked . | . . . . . Robot Schematics Acquired . | . . . . . Robots Built . | . . . . . Authchips . | . . . . . Time . | . . . . . Total Robot Build Rating . | . . . . . Part Schematics Acquired . | . . . . . Parts Built . | . . . . . Authchips . | . . . . . Time . | . . . . . Total Part Build Rating . | . . . . . Parts Repaired . | . . . . . Time . | . . . . . Parts Recycled . | . . . . . Recycled Matter . | . . . . . Retrieved Matter . | . . . . . Retrieved Components . | . . . . . Parts Scanalyzed . | . . . . . Part Schematics Acquired . | . . . . . Parts Damaged . | . . . . . Bothacking | -11 -10 -10 -10 -9 ------------ Run | Scr Mat Min Exi Min Used RIF Installer . | . . . . . Robots Hacked . | . . . . . Non-combat . | . . . . . Combat . | . . . . . Robot Hacks Applied . | . . . . . Relay Couplers Released . | . . . . . Fabnet Peak Effective % . | . . . . . Robots Rewired . | . . . . . Allies Hacked . | . . . . . Hacks Repelled . | . . . . . Allies | -11 -10 -10 -10 -9 -------- Run | Scr Mat Min Exi Min Total Allies 2 | . . 2 . . Largest Group 1 | . . 1 1 . Highest-Rated Group 31 | . . 31 31 . Highest-Rated Ally 31 | . . 31 31 . Total Orders . | . . . . . Ally Attacks 15 | . . 15 . . Total Damage 257 | . . 257 . . Kills 3 | . . 3 . . Allies Corrupted . | . . . . . Allies Melted . | . . . . . Intel | -11 -10 -10 -10 -9 ------- Run | Scr Mat Min Exi Min Robot Analysis Total 4 | . 4 . . . Derelict Logs Recovered . | . . . . . Drone Launches . | . . . . . Drone Recoveries . | . . . . . Exploration | -11 -10 -10 -10 -9 ------------- Run | Scr Mat Min Exi Min Turns Passed 1214 | 88 236 277 299 314 Spaces Moved 1107 | 54 239 266 323 225 Core 21 | 21 . . . . Treads 2 | . . . . 2 Legs . | . . . . . Wheels 1084 | 33 239 266 323 223 Hover . | . . . . . Flight . | . . . . . Fastest Speed 50 | 50 80 80 90 90 Average Speed 88 | 72 80 85 90 102 Slowest Speed 160 | 95 95 90 90 160 Overloaded Moves . | . . . . . Propulsion Burnouts . | . . . . . Robots Hopped . | . . . . . Cave-ins Triggered . | . . . . . Exploration Rate (%) 47 | 3 54 61 69 50 Regions Visited 4 Branch Regions 3 Pre-discovered Areas 1 | . . 1 . . Known Exits Taken 1 | . 1 . . . Unknown Exits Taken 3 | 1 . 1 1 . Scrap Searched 1 | . . 1 . . Spaces Dug 1 | . 1 . . . Terrain Destroyed 82 | . 1 61 . 20 Melee . | . . . . . Projectile 1 | . 1 . . . AOE 81 | . . 61 . 20 Terrain Rammed . | . . . . . Walls Destroyed . | . . . . . Machines Disabled . | . . . . . Actions | -11 -10 -10 -10 -9 --------- Run | Scr Mat Min Exi Min Total 1233 | 80 258 294 331 270 Wait 7 | . 1 3 . 3 Move 1103 | 53 238 265 322 225 Hop . | . . . . . Pick Up 18 | 7 2 2 3 4 Fast Attach 10 | 5 3 . . 2 Attach 7 | 3 . 2 . 2 Detach 2 | 1 . . . 1 Swap 21 | 1 2 6 3 9 Drop 10 | . 1 2 3 4 Fire 54 | 10 11 14 . 19 Melee 1 | . . . . 1 Ram . | . . . . . Kick . | . . . . . Crush . | . . . . . Escape Stasis . | . . . . . Rewire . | . . . . . Trap . | . . . . . Miscellaneous . | . . . . . Route ------- -11/Scrapyard -10/Materials (discovered 3 exits: [*Mat x2] / *Min) -10/Mines (discovered 2 exits: [*Mat] / *Exi) -10/Exiles -9/Mines (discovered 1 exit: [*Mat]) History --------- Turn | Location | Event 11 | -11/Scrapyard | Discovered new exit (range 15) 89 | -11/Scrapyard | Entered Materials 148 | -10/Materials | Discovered new exit (range 9) 174 | -10/Materials | Central database locked down 218 | -10/Materials | Identified exit to Mines 235 | -10/Materials | Discovered new exit (range 11) 318 | -10/Materials | Build established: Mutant 325 | -10/Materials | Entered Mines 417 | -10/Mines | Met a Derelict testing a Signal Generator 477 | -10/Mines | Discovered new exit (range 10) 503 | -10/Mines | Escorted by a lone wolf Derelict 523 | -10/Mines | Learned location of Storage (-8) 551 | -10/Mines | Core integrity fell below 50% 596 | -10/Mines | Deemed a non-threat by the Exiles lab entrance 596 | -10/Mines | Discovered new exit (range 5) 602 | -10/Mines | Entered Exiles 602 | -10/Exiles | Accompanied by 1 ally 625 | -10/Exiles | Met 8R-AWN 639 | -10/Exiles | Met EX-HEX 691 | -10/Exiles | Met EX-DEC 777 | -10/Exiles | Met EX-BIN 790 | -10/Exiles | Aligned with FarCom system 790 | -10/Exiles | Given EX-Vault access code 811 | -10/Exiles | Opened EX-Vault 817 | -10/Exiles | Found 0b10 Alert Chip 836 | -10/Exiles | Warned to stay clear of 0b10 Research branches 894 | -10/Exiles | Discovered new exit (range 10) 901 | -10/Exiles | Left Exiles lab with 0b10 Alert Chip 901 | -10/Exiles | Entered Mines 931 | -9/Mines | Met a Derelict bent on vengeance 994 | -9/Mines | Met a Derelict who couldn't figure out how to use a Trap Extractor 1062 | -9/Mines | Discovered new exit (range 14) 1186 | -9/Mines | Core integrity fell below 20% 1215 | -9/Mines | Destroyed by Y-45 Defender with Beam Rifle Last Messages --------------- 01000_ Acquired Mic. Nuclear Core. 01003_ Acquired Hvy. Rocket Launcher. 01005_ Acquired Med. Insulated Plating. 01062_ EXIT=FOUND 01070_ T6-KJ7(g) heat damages Carbon-fiber Leg. 01072_ T6-KJ7(g) overheating. 01072_ T6-KJ7(g) suffers critical hit (Burn). 01072_ T6-KJ7(g) destroyed. 01072_ G-34 Mercenary destroyed. 01072_ Switching to secondary target: G-47 Trooper. 01072_ G-47 Trooper destroyed. 01079_ Acquired 53 matter. 01082_ Acquired Lgt. Angular Momentum Engine. 01083_ Dropped Mic. Nuclear Core. 01084_ Acquired 41 matter. 01120_ R-06 Scavenger suffers critical hit (Burn). 01190_ Y-45 Defender destroyed. 01203_ Assault Rifle destroyed. 01206_ Lgt. Angular Momentum Engine destroyed. 01209_ Med. Laser destroyed. Map ----- +----------------------------------------------------+ | | | | | | | | | | | | | | | ?????????????????????????????????????????????????? | | ???????????########??????????????????????????????? | | ???????????#""""""#??????????????????????????????? | | ???????????#! !#??????????????????????????????? | | ???????????# ! ^##????????#?????????????????????? | | ???????????#| ]###??????? ?????????????????????? | | ??????????## # ##?????# ?????????????????????? | | ????#????## X #?????# #????????????????????? | | ????# #### #?????# ##???????????????????? | | ????# ##????## ##??????????????????? | | ????# ###????## #?????????g????????? | | ????###### ##??????# ##?????????????????? | | ?????????# #???????# #?????????????????? | | ?????????## #????????# ##????????????????? | | ??????????## ##????###?# #????????????????? | | ???????????# ##????##" ## #????????????????? | | ??????????## #?????#"" # #?????????????????? | | ??????????# ##????#]! Yu ###########???????? | | ??????????# #????#[! @%* #???????? | | ??????????## #????#"" # u #???????? | | ???????????## ##???##" ## ######## #???????? | | ????????????# ########?# #??????# ##??????? | | ????????????# #?# #??????# #??????? | | ?###????????## ###### #?## ##?????## #??????? | | ## #??????### #????# #??#####??????# ##?????? | | # #????## ###??# #?????????????# ##????? | | ##?## #### ###???????###### #????? | | ### ##?????## ### #????? | | #?????# ##????? | | # ## #?????# ##?????? | | ## #### #?????# """ ##?????? | | ### ##??## #?????# """ ##????? | | #?## ##???## #?????# """ #????? | | #??## ##???# ##?????# #????? | | ???## #???# ######### #### ##????? | | ?### #???# ### ##??#####?????? | | ## #???## ##?# ## ## #?????????????? | | ##????#| #### ## ### ##?????????????? | | # #### ##?????# ## #?###??????????????? | | ## ##??#####??????# ####### #??????????????????? | | ?####????????????### #?????# ??????????????????? | | ???????????????### ##????###??????????????????? | | ???????????????# ##????????????????????????? | +----------------------------------------------------+ Best States ------------- Heat Dissipation 25 Energy Generation 18 Energy Capacity 250 Matter Stores 300 Matter Capacity 300 Sight Range 16 Terrain Scan Density 10 Armor Coverage 225 Resistance: EM 20 Evasion (%) 50 Recoil Reduction 2 Item Schematics ----------------- None Robot Schematics ------------------ None Fabricated ------------ Nothing Alien Tech Used ----------------- None Achievements -------------- None Challenges ------------ None Game ------ Seed LinkedTeslaPenetrator Manual? 0 Play Time 00:14:28 Cumulative 805.7 hours Start 2022.12.12 @ 16:25:15 End 2022.12.12 @ 16:39:30 Sessions 1 Manual Loads 0 Difficulty Rogue Special Mode None Game No. 424 Rogue 297 Adventurer 125 Explorer 2 Win Type - Total 96 Types 79/7/5/1/1/0/0/2/1 Lore% 83 Gallery% 89 Achievement% 80 Wizard Run 0 Options --------- ASCII 0 Keyboard 1 Movement Numpad Keybinds 0 Fullscreen 1 Font 36/TerminusFine Map View 76x50 Tactical HUD 1 Map Filters NONE Filters NONE Steam 1 RUN: a8578746-ee0a-436a-9b13-445ee1372d7f